fUST/lending_fUST_20250208
["ID","MTS","AMOUNT","RATE_DAILY","PERIOD"]
[352206737,1738997450518,-500.0,0.00011369,2]
[352206738,1738997450529,-500.0,0.00011369,2]
[352206739,1738997450538,-500.0,0.00011369,2]
[352206740,1738997450549,-821.67,0.00011369,2]
[352206741,1738997450558,-365.46,0.00011369,2]
[352206742,1738997450568,-466.71739335,0.00011369,2]
[352206743,1738997450577,-500.0,0.00011369,2]
[352206744,1738997450587,-500.0,0.00011369,2]
[352206745,1738997450597,-503.1723947,0.00011369,2]
[352206746,1738997450606,-500.0,0.00011369,2]
[352206747,1738997450616,-1068.11,0.00011369,2]
[352206748,1738997450625,-665.91,0.00011369,2]
[352206749,1738997450637,-2405.69,0.00011369,2]
[352206750,1738997450647,-500.0,0.00011369,2]
[352206751,1738997450657,-500.0,0.00011369,2]
[352206752,1738997450666,-500.0,0.00011369,2]
[352206753,1738997450675,-1084.46,0.00011369,2]
[352206754,1738997450845,-250.8217622,0.00011369,2]
[352206755,1738997450856,-500.0,0.00011369,2]
[352206756,1738997450874,-12106.72,0.00011369,2]
[352206757,1738997450886,-626.41,0.00011369,2]
[352206758,1738997450896,-2335.23,0.00011369,2]
[352206759,1738997450907,-542.73,0.00011369,2]
[352206760,1738997450917,-500.0,0.00011369,2]
[352206761,1738997450927,-500.0,0.00011369,2]
[352206762,1738997450938,-1352.5,0.00011369,2]
[352206763,1738997450948,-969.38,0.00011369,2]
[352206764,1738997450957,-500.0,0.00011369,2]
[352206765,1738997450967,-984.23,0.00011369,2]
[352206766,1738997450977,-607.9,0.00011369,2]
[352206767,1738997450987,-537.14,0.00011369,2]
[352206768,1738997450997,-500.0,0.00011369,2]
[352206769,1738997451007,-500.0,0.00011369,2]
[352206770,1738997451017,-611.78,0.00011369,2]
[352206771,1738997451027,-1307.71,0.00011369,2]
[352206772,1738997451037,-539.75,0.00011369,2]
[352206773,1738997451047,-40826.56,0.00011369,2]
[352206774,1738997451058,-500.0,0.00011369,2]
[352206775,1738997451068,-525.33,0.00011369,2]
[352206776,1738997451078,-502.35354507,0.00011369,2]
[352206777,1738997451088,-2456.01,0.00011369,2]
[352206778,1738997451100,-500.0,0.00011369,2]
[352206779,1738997451110,-500.0,0.00011369,2]
[352206780,1738997451119,-539.83,0.00011369,2]
[352206781,1738997451129,-1353.55,0.00011369,2]
[352206782,1738997451140,-1592.46,0.00011369,2]
[352206783,1738997451149,-217.50516595,0.00011369,2]
[352206784,1738997451161,-1224.31,0.00011369,2]
[352206785,1738997451171,-2934.6,0.00011369,2]
[352206786,1738997451181,-11281.79,0.00011369,2]
[352206787,1738997451192,-500.0,0.00011369,2]
[352206788,1738997451203,-1258.05,0.00011369,2]
[352206789,1738997451213,-500.0,0.00011369,2]
[352206790,1738997451223,-981.45,0.00011369,2]
[352206791,1738997451233,-572.11,0.00011369,2]
[352206792,1738997451244,-500.0,0.00011369,2]
[352206793,1738997451254,-500.0,0.00011369,2]
[352206794,1738997451264,-1690.11,0.00011369,2]
[352206795,1738997451273,-666.76,0.00011369,2]
[352206796,1738997451283,-427.24333584,0.00011369,2]
[352206797,1738997451294,-500.0,0.00011369,2]
[352206798,1738997451304,-469.87198165,0.00011369,2]
[352206799,1738997451314,-447.28,0.00011369,2]
[352206800,1738997451324,-500.0,0.00011369,2]
[352206801,1738997451334,-630.88271327,0.00011369,2]
[352206802,1738997451345,-583.42,0.00011369,2]
[352206803,1738997451354,-151.0,0.00011369,2]
[352206804,1738997451364,-876.83,0.00011369,2]
[352206805,1738997451374,-4637.38,0.00011369,2]
[352206806,1738997451384,-151.0,0.00011369,2]
[352206807,1738997451394,-568.61,0.00011369,2]
[352206808,1738997451403,-1226.15,0.00011369,2]
[352206809,1738997451413,-151.0,0.00011369,2]
[352206810,1738997451423,-2330.12,0.00011369,2]
[352206811,1738997451432,-500.0,0.00011369,2]
[352206812,1738997451442,-500.0,0.00011369,2]
[352206813,1738997451452,-500.0,0.00011369,2]
[352206814,1738997451462,-3471.39,0.00011369,2]
[352206815,1738997451471,-228.96689035,0.00011369,2]
[352206816,1738997451481,-822.39,0.00011369,2]
[352206817,1738997451491,-828.88,0.00011369,2]
[352206818,1738997451500,-500.0,0.00011369,2]
[352206819,1738997451510,-546.88,0.00011369,2]
[352206820,1738997451519,-603.95786453,0.00011369,2]
[352206821,1738997451529,-500.0,0.00011369,2]
[352206822,1738997451539,-2432.19,0.00011369,2]
[352206823,1738997451549,-500.0,0.00011369,2]
[352206824,1738997451559,-2951.6,0.00011369,2]
[352206825,1738997451568,-254.0,0.00011369,2]
[352206826,1738997451578,-502.71699891,0.00011369,2]
[352206827,1738997451588,-609.32,0.00011369,2]
[352206828,1738997451598,-500.0,0.00011369,2]
[352206829,1738997451607,-1316.74,0.00011369,2]
[352206830,1738997451617,-576.01,0.00011369,2]
[352206831,1738997451626,-500.0,0.00011369,2]
[352206832,1738997451636,-555.81,0.00011369,2]
[352206833,1738997451645,-1122.08,0.00011369,2]
[352206834,1738997451655,-509.72857049,0.00011369,2]
[352206835,1738997451665,-543.15043206,0.00011369,2]
[352206836,1738997451675,-990.75,0.00011369,2]
[352206837,1738997451684,-500.0,0.00011369,2]
[352206838,1738997451693,-914.05,0.00011369,2]
[352206839,1738997451703,-955.58,0.00011369,2]
[352206840,1738997451713,-500.0,0.00011369,2]
[352206841,1738997451722,-500.0,0.00011369,2]
[352206842,1738997451732,-500.0,0.00011369,2]
[352206843,1738997451742,-500.0,0.00011369,2]
[352206844,1738997451751,-500.0,0.00011369,2]
[352206845,1738997451761,-641.74,0.00011369,2]
[352206846,1738997451770,-623.83951107,0.00011369,2]
[352206847,1738997451779,-1689.98,0.00011369,2]
[352206848,1738997451789,-151.0,0.00011369,2]
[352206849,1738997451798,-672.1995102,0.0001139,2]
[352206850,1738997451808,-151.0,0.000114,2]
[352206851,1738997451817,-150.532,0.0001141,2]
[352206852,1738997451827,-539.973,0.0001141,2]
[352206853,1738997451836,-1978.517,0.0001141,2]
[352206854,1738997451845,-2299.991,0.0001141,2]
[352206855,1738997451855,-150.22,0.0001141,2]
[352206856,1738997451864,-396.0,0.0001141,2]
[352206857,1738997451874,-404.557,0.0001141,2]
[352206858,1738997451884,-600.0,0.00011424,2]
[352206859,1738997451893,-500.0628284,0.00011429,2]
[352206860,1738997451902,-5000.0,0.000115,2]
[352206861,1738997451912,-347.036,0.000115,2]
[352206862,1738997451921,-151.0,0.000115,2]
[352206863,1738997451931,-10000.0,0.00011501,2]
[352206864,1738997451940,-10000.000001,0.00011501,2]
[352206865,1738997451949,-151.0,0.00011506,2]
[352206866,1738997451959,-1507.34,0.00011506,2]
[352206867,1738997451968,-5008.567,0.00011506,2]
[352206868,1738997451978,-167.931027,0.00011506,2]
[352206869,1738997451987,-167.931027,0.00011506,2]
[352206870,1738997451996,-500.0,0.00011506,2]
[352206871,1738997452006,-500.0,0.00011506,2]
[352206872,1738997452016,-576.25,0.00011506,2]
[352206873,1738997452025,-399.662193,0.00011506,2]
[352206874,1738997452034,-399.662193,0.00011506,2]
[352206875,1738997452043,-500.0,0.00011506,2]
[352206876,1738997452052,-500.0,0.00011506,2]
[352206877,1738997452061,-500.0,0.00011506,2]
[352206878,1738997452071,-245.63,0.00011506,2]
[352206879,1738997452080,-500.0,0.00011506,2]
[352206880,1738997452090,-151.0,0.00011506,2]
[352206881,1738997452099,-500.0,0.00011506,2]
[352206882,1738997452109,-500.0,0.00011506,2]
[352206883,1738997452118,-500.0,0.00011506,2]
[352206884,1738997452128,-275.05638713,0.00011506,2]
[352206885,1738997452142,-849.59,0.00011506,2]
[352206886,1738997452152,-500.0,0.00011506,2]
[352206887,1738997452166,-693.18,0.00011506,2]
[352206888,1738997452176,-151.0,0.00011506,2]
[352206889,1738997452186,-953.12,0.00011506,2]
[352206890,1738997452195,-500.0,0.00011506,2]
[352206891,1738997452206,-563.87,0.00011506,2]
[352206892,1738997452215,-500.0,0.00011506,2]
[352206893,1738997452224,-500.0,0.00011506,2]
[352206894,1738997452235,-500.0,0.00011506,2]
[352206895,1738997452244,-245.36356469,0.00011506,2]
[352206896,1738997452254,-500.0,0.00011506,2]
[352206897,1738997452263,-1300.41,0.00011506,2]
[352206898,1738997452272,-500.0,0.00011506,2]
[352206899,1738997452282,-1334.03,0.00011506,2]
[352206900,1738997452291,-151.0,0.00011506,2]
[352206901,1738997452301,-878.19,0.00011506,2]
[352206902,1738997452310,-500.0,0.00011506,2]
[352206903,1738997452319,-151.0,0.00011506,2]
[352206904,1738997452329,-500.0,0.00011506,2]
[352206905,1738997452338,-151.0,0.00011506,2]
[352206906,1738997452348,-151.0,0.00011506,2]
[352206907,1738997452357,-151.0,0.00011506,2]
[352206908,1738997452367,-557.1208298,0.00011506,2]
[352206909,1738997452376,-500.0,0.00011506,2]
[352206910,1738997452387,-151.0,0.00011506,2]
[352206911,1738997452396,-232.48,0.00011506,2]
[352206912,1738997452406,-544.91,0.00011506,2]
[352206913,1738997452415,-500.0,0.00011506,2]
[352206914,1738997452423,-172.987951,0.00011506,2]
[352206915,1738997452433,-151.0,0.00011506,2]
[352206916,1738997452443,-172.987951,0.00011506,2]
[352206917,1738997452453,-1308.21,0.00011506,2]
[352206918,1738997452462,-595.89865156,0.00011506,2]
[352206919,1738997452471,-500.0,0.00011506,2]
[352206920,1738997452481,-151.0,0.00011506,2]
[352206921,1738997452490,-417.35,0.00011506,2]
[352206922,1738997452499,-500.0,0.00011506,2]
[352206923,1738997452509,-427.335745,0.00011506,2]
[352206924,1738997452518,-821.67,0.00011506,2]
[352206925,1738997452528,-427.335745,0.00011506,2]
[352206926,1738997452537,-151.0,0.00011506,2]
[352206927,1738997452546,-640.61,0.00011506,2]
[352206928,1738997452556,-500.0,0.00011506,2]
[352206929,1738997452565,-1068.11,0.00011506,2]
[352206930,1738997452575,-665.91,0.00011506,2]
[352206931,1738997452585,-2405.69,0.00011506,2]
[352206932,1738997452594,-500.0,0.00011506,2]
[352206933,1738997452603,-500.0,0.00011506,2]
[352206934,1738997452612,-500.0,0.00011506,2]
[352206935,1738997452622,-1084.46,0.00011506,2]
[352206936,1738997452631,-500.0,0.00011506,2]
[352206937,1738997452642,-151.0,0.00011506,2]
[352206938,1738997452651,-12106.72,0.00011506,2]
[352206939,1738997452660,-626.41,0.00011506,2]
[352206940,1738997452670,-2335.23,0.00011506,2]
[352206941,1738997452679,-500.0,0.00011506,2]
[352206942,1738997452689,-500.0,0.00011506,2]
[352206943,1738997452698,-1352.5,0.00011506,2]
[352206944,1738997452707,-969.38,0.00011506,2]
[352206945,1738997452717,-500.0,0.00011506,2]
[352206946,1738997452726,-984.23,0.00011506,2]
[352206947,1738997452735,-537.14,0.00011506,2]
[352206948,1738997452745,-500.0,0.00011506,2]
[352206949,1738997452754,-245.84,0.00011506,2]
[352206950,1738997452763,-1307.71,0.00011506,2]
[352206951,1738997452772,-539.75,0.00011506,2]
[352206952,1738997452782,-40826.56,0.00011506,2]
[352206953,1738997452791,-286.865909,0.00011506,2]
[352206954,1738997452800,-525.33,0.00011506,2]
[352206955,1738997452810,-286.865909,0.00011506,2]
[352206956,1738997452819,-2456.01,0.00011506,2]
[352206957,1738997452828,-500.0,0.00011506,2]
[352206958,1738997452838,-178.364862,0.00011506,2]
[352206959,1738997452847,-500.0,0.00011506,2]
[352206960,1738997452857,-1353.55,0.00011506,2]
[352206961,1738997452866,-1592.46,0.00011506,2]
[352206962,1738997452875,-178.364862,0.00011506,2]
[352206963,1738997452885,-1224.31,0.00011506,2]
[352206964,1738997452894,-2934.6,0.00011506,2]
[352206965,1738997452904,-11281.79,0.00011506,2]
[352206966,1738997452913,-591.28,0.00011506,2]
[352206967,1738997452924,-1258.05,0.00011506,2]
[352206968,1738997452934,-500.0,0.00011506,2]
[352206969,1738997452943,-981.45,0.00011506,2]
[352206970,1738997452954,-500.0,0.00011506,2]
[352206971,1738997452964,-493.065792,0.00011506,2]
[352206972,1738997452974,-500.0,0.00011506,2]
[352206973,1738997452984,-493.065792,0.00011506,2]
[352206974,1738997452994,-1690.11,0.00011506,2]
[352206975,1738997453003,-666.76,0.00011506,2]
[352206976,1738997453013,-199.87474616,0.00011506,2]
[352206977,1738997453022,-500.0,0.00011506,2]
[352206978,1738997453032,-150.12,0.00011506,2]
[352206979,1738997453043,-150.12,0.00011506,2]
[352206980,1738997453052,-151.30050247,0.00011506,2]
[352206981,1738997453061,-500.0,0.00011506,2]
[352206982,1738997453070,-583.42,0.00011506,2]
[352206983,1738997453080,-789.0,0.00011506,2]
[352206984,1738997453090,-876.83,0.00011506,2]
[352206985,1738997453099,-507.54116,0.00011506,2]
[352206986,1738997453109,-150.12,0.00011506,2]
[352206987,1738997453119,-507.54116,0.00011506,2]
[352206988,1738997453128,-150.12,0.00011506,2]
[352206989,1738997453137,-500.0,0.00011506,2]
[352206990,1738997453147,-4637.38,0.00011506,2]
[352206991,1738997453158,-150.12,0.00011506,2]
[352206992,1738997453168,-150.12,0.00011506,2]
[352206993,1738997453177,-500.0,0.00011506,2]
[352206994,1738997453187,-568.61,0.00011506,2]
[352206995,1738997453197,-1226.15,0.00011506,2]
[352206996,1738997453206,-2330.12,0.00011506,2]
[352206997,1738997453215,-151.0,0.00011506,2]
[352206998,1738997453224,-214.15,0.00011506,2]
[352206999,1738997453234,-500.0,0.00011506,2]
[352207000,1738997453244,-3471.39,0.00011506,2]
[352207001,1738997453254,-151.0,0.00011506,2]
[352207002,1738997453263,-500.0,0.00011506,2]
[352207003,1738997453273,-500.0,0.00011506,2]
[352207004,1738997453282,-500.0,0.00011506,2]
[352207005,1738997453291,-822.39,0.00011506,2]
[352207006,1738997453299,-828.88,0.00011506,2]
[352207007,1738997453308,-500.0,0.00011506,2]
[352207008,1738997453317,-546.88,0.00011506,2]
[352207009,1738997453328,-2432.19,0.00011506,2]
[352207010,1738997453337,-151.0,0.00011506,2]
[352207011,1738997453345,-500.0,0.00011506,2]
[352207012,1738997453355,-2951.6,0.00011506,2]
[352207013,1738997453366,-151.0,0.00011506,2]
[352207014,1738997453376,-609.32,0.00011506,2]
[352207015,1738997453387,-1316.74,0.00011506,2]
[352207016,1738997453396,-500.0,0.00011506,2]
[352207017,1738997453405,-576.01,0.00011506,2]
[352207018,1738997453414,-555.81,0.00011506,2]
[352207019,1738997453425,-1122.08,0.00011506,2]
[352207020,1738997453436,-990.75,0.00011506,2]
[352207021,1738997453447,-914.05,0.00011506,2]
[352207022,1738997453456,-546.02260628,0.00011506,2]
[352207023,1738997453465,-955.58,0.00011506,2]
[352207024,1738997453475,-500.0,0.00011506,2]
[352207025,1738997453484,-441.86,0.00011506,2]
[352207026,1738997453619,-500.0,0.00011506,2]
[352207027,1738997453629,-500.0,0.00011506,2]
[352207028,1738997453639,-500.0,0.00011506,2]
[352207029,1738997453648,-641.74,0.00011506,2]
[352207030,1738997453658,-1689.98,0.00011506,2]
[352207031,1738997453667,-389.1487272,0.00011507,2]
[352207032,1738997453676,-162.3062128,0.00011507,2]
[352207033,1738997453685,-215.7968595,0.00011507,2]
[352207034,1738997453694,-153.0,0.00011507,2]
[352207035,1738997453704,-358.907697,0.00011507,2]
[352207036,1738997453713,-1000.0,0.00011521,2]
[352207037,1738997453722,-386.01861773,0.00011521,2]
[352207038,1738997453732,-1000.0,0.00011521,2]
[352207039,1738997453741,-501.67028989,0.00011521,2]
[352207040,1738997453751,-151.0,0.00011531,2]
[352207041,1738997453760,-600.0,0.00011543,2]
[352207042,1738997453769,-151.0,0.00011543,2]
[352207043,1738997453778,-966.14601756,0.00011584,2]
[352207044,1738997453787,-10000.0,0.000116,2]
[352207045,1738997453796,-4999.999999,0.00011614,2]
[352207046,1738997453806,-10000.0,0.00011631,2]
[352207047,1738997453815,-153.543592,0.00011631,2]
[352207048,1738997453824,-167.931027,0.00011631,2]
[352207049,1738997453833,-148.34908435,0.00011631,2]
[352207050,1738997453855,-19.58194265,0.00011631,2]
[352207051,1738997453864,-399.662193,0.00011631,2]
[352207052,1738997453873,-399.662193,0.00011631,2]
[352207053,1738997453883,-151.0,0.00011631,2]
[352207054,1738997453892,-151.0,0.00011631,2]
[352207055,1738997453901,-151.0,0.00011643,2]
[352207056,1738997453910,-151.0,0.00011643,2]
[352207057,1738997453920,-151.0,0.00011643,2]
[352207058,1738997453929,-271.53084674,0.00011643,2]
[352207059,1738997453939,-500.0,0.00011643,2]
[352207060,1738997453948,-309.133337,0.00011643,2]
[352207061,1738997453957,-309.133337,0.00011643,2]
[352207062,1738997453967,-576.25,0.00011643,2]
[352207063,1738997453976,-251.48381772,0.00011643,2]
[352207064,1738997453985,-500.0,0.00011643,2]
[352207065,1738997453995,-151.0,0.00011643,2]
[352207066,1738997454004,-151.0,0.00011643,2]
[352207067,1738997454013,-151.0,0.00011643,2]
[352207068,1738997454023,-151.0,0.00011643,2]
[352207069,1738997454032,-500.0,0.00011643,2]
[352207070,1738997454041,-500.0,0.00011643,2]
[352207071,1738997454051,-500.0,0.00011643,2]
[352207072,1738997454060,-500.0,0.00011643,2]
[352207073,1738997454069,-500.0,0.00011643,2]
[352207074,1738997454079,-849.59,0.00011643,2]
[352207075,1738997454088,-342.64521233,0.00011643,2]
[352207076,1738997454097,-693.18,0.00011643,2]
[352207077,1738997454106,-608.63712056,0.00011643,2]
[352207078,1738997605159,3000.0,0.00014,30]
[352207079,1738997605662,3000.0,0.0001401,30]
[352207080,1738997606151,3000.0,0.0001402,30]
[352207081,1738997836337,2527.16277947,0.000113,30]
[352207082,1738998562749,900.0,8.002e-05,2]
[352207126,1738998632231,-1351.3096072,0.00010003,2]
[352207128,1738998632241,-288.80094044,0.00010858,2]
[352207130,1738998632251,-666.88945236,0.000109,2]
[352207139,1738998632367,-256.55234567,0.000109,2]
[352207140,1738998632397,-709.53041502,0.000109,2]
[352207141,1738998632410,-972.73741259,0.000109,2]
[352207142,1738998632419,-300.0,0.00010956,2]
[352207143,1738998632428,-246.14938163,0.00010957,2]
[352207144,1738998632437,-189.21860272,0.00010957,2]
[352207145,1738998632446,-500.0,0.00010957,2]
[352207146,1738998632456,-387.10079666,0.00010957,2]
[352207147,1738998632465,-259.25125356,0.00010957,2]
[352207148,1738998632474,-500.0,0.00010957,2]
[352207149,1738998632484,-500.0,0.00010957,2]
[352207150,1738998632493,-310.27342391,0.00010957,2]
[352207151,1738998632502,-500.0,0.00010957,2]
[352207152,1738998632511,-500.0,0.00010958,2]
[352207153,1738998632521,-500.0,0.00010958,2]
[352207154,1738998632531,-500.0,0.00010958,2]
[352207155,1738998632540,-329.28606819,0.00010958,2]
[352207156,1738998632553,-503.87945351,0.00010958,2]
[352207157,1738998632562,-500.0,0.00010958,2]
[352207158,1738998632572,-500.0,0.00010958,2]
[352207159,1738998632582,-281.35343505,0.00010958,2]
[352207189,1738998638134,-218.64656495,0.00010958,2]
[352207190,1738998638144,-500.0,0.00010958,2]
[352207191,1738998638153,-512.22625912,0.00010958,2]
[352207192,1738998638162,-500.0,0.00010958,2]
[352207193,1738998638172,-500.0,0.00010958,2]
[352207194,1738998638181,-500.0,0.00010958,2]
[352207195,1738998638191,-500.0,0.00010958,2]
[352207196,1738998638200,-500.0,0.00010958,2]
[352207197,1738998638209,-233.99594189,0.00010958,2]
[352207198,1738998638219,-500.0,0.00010958,2]
[352207199,1738998638228,-500.0,0.00010958,2]
[352207200,1738998638237,-500.0,0.00010958,2]
[352207201,1738998638246,-500.0,0.00010958,2]
[352207202,1738998638255,-500.0,0.00010958,2]
[352207203,1738998638265,-500.0,0.00010958,2]
[352207204,1738998638274,-500.0,0.00010958,2]
[352207205,1738998638283,-500.0,0.00010958,2]
[352207206,1738998638292,-545.88,0.00010958,2]
[352207207,1738998638302,-500.0,0.00010958,2]
[352207208,1738998638312,-500.0,0.00010958,2]
[352207209,1738998638321,-500.0,0.00010958,2]
[352207210,1738998638331,-500.0,0.00010958,2]
[352207211,1738998638340,-500.0,0.00010958,2]
[352207212,1738998638349,-500.0,0.00010958,2]
[352207213,1738998638358,-500.0,0.00010958,2]
[352207214,1738998638368,-500.0,0.00010958,2]
[352207215,1738998638378,-500.0,0.00010958,2]
[352207216,1738998638388,-501.22273499,0.00010958,2]
[352207217,1738998638397,-500.0,0.00010958,2]
[352207218,1738998638407,-641.7694299,0.00010958,2]
[352207219,1738998638416,-500.0,0.00010958,2]
[352207220,1738998638425,-500.0,0.00010958,2]
[352207221,1738998638434,-500.0,0.00010958,2]
[352207222,1738998638443,-500.0,0.00010958,2]
[352207223,1738998638453,-500.0,0.00010958,2]
[352207224,1738998638462,-217.28436142,0.00010958,2]
[352207225,1738998638471,-500.0,0.00010958,2]
[352207226,1738998638480,-500.0,0.00010958,2]
[352207227,1738998638490,-500.0,0.00010958,2]
[352207228,1738998638499,-478.42018004,0.00010958,2]
[352207229,1738998638508,-500.0,0.00010958,2]
[352207230,1738998638517,-500.0,0.00010958,2]
[352207231,1738998638526,-500.0,0.00010958,2]
[352207232,1738998638536,-249.69181,0.00010958,2]
[352207233,1738998638548,-500.0,0.00010958,2]
[352207234,1738998638558,-500.0,0.00010958,2]
[352207235,1738998638567,-500.0,0.00010958,2]
[352207236,1738998638576,-500.0,0.00010958,2]
[352207237,1738998638586,-500.0,0.00010958,2]
[352207238,1738998638596,-500.0,0.00010958,2]
[352207239,1738998638605,-500.0,0.00010958,2]
[352207240,1738998638618,-500.0,0.00010958,2]
[352207241,1738998638630,-500.0,0.00010958,2]
[352207242,1738998638640,-501.96590552,0.00010958,2]
[352207243,1738998638650,-500.0,0.00010958,2]
[352207244,1738998638660,-500.0,0.00010958,2]
[352207245,1738998638670,-500.0,0.00010958,2]
[352207246,1738998638680,-500.0,0.00010958,2]
[352207247,1738998638691,-500.0,0.00010958,2]
[352207248,1738998638700,-500.0,0.00010958,2]
[352207249,1738998638710,-500.0,0.00010958,2]
[352207250,1738998638719,-500.0,0.00010958,2]
[352207251,1738998638729,-537.62950207,0.00010958,2]
[352207252,1738998638739,-395.75672126,0.00010958,2]
[352207253,1738998638750,-374.04744171,0.00010958,2]
[352207254,1738998638761,-500.0,0.00010958,2]
[352207255,1738998638770,-500.0,0.00010958,2]
[352207256,1738998638780,-500.0,0.00010958,2]
[352207257,1738998638790,-500.0,0.00010958,2]
[352207258,1738998638799,-500.0,0.00010958,2]
[352207259,1738998638809,-500.0,0.00010958,2]
[352207260,1738998638818,-500.0,0.00010958,2]
[352207261,1738998638828,-500.0,0.00010958,2]
[352207262,1738998638837,-500.0,0.00010958,2]
[352207263,1738998638846,-500.0,0.00010958,2]
[352207264,1738998638855,-500.0,0.00010958,2]
[352207265,1738998638864,-500.0,0.00010958,2]
[352207266,1738998638874,-500.20159578,0.00010958,2]
[352207267,1738998638883,-500.0,0.00010958,2]
[352207268,1738998638892,-500.0,0.00010958,2]
[352207269,1738998638902,-500.0,0.00010958,2]
[352207270,1738998638912,-500.0,0.00010958,2]
[352207271,1738998638922,-500.0,0.00010958,2]
[352207272,1738998638931,-500.0,0.00010958,2]
[352207273,1738998638941,-500.0,0.00010958,2]
[352207274,1738998638950,-701.06,0.00010958,2]
[352207275,1738998638959,-565.21,0.00010958,2]
[352207276,1738998638968,-500.0,0.00010958,2]
[352207277,1738998638977,-500.0,0.00010958,2]
[352207278,1738998638986,-500.0,0.00010958,2]
[352207279,1738998638995,-588.54,0.00010958,2]
[352207280,1738998639004,-500.0,0.00010958,2]
[352207281,1738998639014,-424.53784249,0.00010958,2]
[352207282,1738998639023,-500.0,0.00010958,2]
[352207283,1738998639032,-500.0,0.00010958,2]
[352207284,1738998639041,-500.0,0.00010958,2]
[352207285,1738998639050,-500.0,0.00010958,2]
[352207286,1738998639060,-500.0,0.00010958,2]
[352207287,1738998639069,-500.0,0.00010958,2]
[352207288,1738998639078,-500.0,0.00010958,2]
[352207289,1738998639087,-500.0,0.00010958,2]
[352207290,1738998639096,-504.55046056,0.00010958,2]
[352207291,1738998639105,-547.87103451,0.00010958,2]
[352207292,1738998639115,-500.0,0.00010958,2]
[352207293,1738998639123,-595.65875474,0.00010958,2]
[352207294,1738998639133,-500.0,0.00010958,2]
[352207295,1738998639142,-507.54005291,0.00010958,2]
[352207296,1738998639151,-500.0,0.00010958,2]
[352207297,1738998639161,-500.0,0.00010958,2]
[352207298,1738998639170,-500.0,0.00010958,2]
[352207299,1738998639179,-500.0,0.00010958,2]
[352207300,1738998639188,-500.0,0.00010958,2]
[352207301,1738998639198,-500.0,0.00010958,2]
[352207302,1738998639207,-397.67224139,0.00010958,2]
[352207303,1738998639216,-500.0,0.00010958,2]
[352207304,1738998639226,-500.0,0.00010958,2]
[352207305,1738998639235,-501.19181129,0.00010958,2]
[352207306,1738998639244,-500.0,0.00010958,2]
[352207307,1738998639253,-500.0,0.00010958,2]
[352207308,1738998639262,-500.0,0.00010958,2]
[352207309,1738998639272,-500.0,0.00010958,2]
[352207310,1738998639281,-501.62185845,0.00010958,2]
[352207311,1738998639291,-500.0,0.00010958,2]
[352207312,1738998639300,-500.0,0.00010958,2]
[352207313,1738998639309,-500.0,0.00010958,2]
[352207314,1738998639322,-330.41889319,0.00010958,2]
[352207315,1738998639332,-500.0,0.00010958,2]
[352207316,1738998639341,-500.0,0.00010958,2]
[352207317,1738998639351,-500.0,0.00010958,2]
[352207318,1738998639360,-500.0,0.00010958,2]